fUSD/lending_fUSD_20240109
["ID","MTS","AMOUNT","RATE_DAILY","PERIOD"]
[310909932,1704814324442,-13217.82,0.00041424,30]
[310909933,1704814324610,-500.0,0.00041424,30]
[310909934,1704814324624,-866.47,0.00041424,30]
[310909935,1704814324633,-500.0,0.00041424,30]
[310909936,1704814324644,-1308.82,0.00041424,30]
[310909937,1704814324653,-3181.95,0.00041424,30]
[310909938,1704814324663,-500.0,0.00041424,30]
[310909939,1704814324673,-1766.64,0.00041424,30]
[310909940,1704814324683,-3615.8,0.00041424,30]
[310909941,1704814324693,-500.0,0.00041424,30]
[310909942,1704814324702,-500.0,0.00041424,30]
[310909943,1704814324712,-799.0,0.00041424,30]
[310909944,1704814324721,-500.0,0.00041424,30]
[310909945,1704814324731,-500.0,0.00041424,30]
[310909946,1704814324741,-53505.47,0.00041424,30]
[310909947,1704814324752,-1413.08,0.00041424,30]
[310909948,1704814324761,-11287.22,0.00041424,30]
[310909949,1704814324771,-1155.76,0.00041424,30]
[310909950,1704814324781,-3747.83,0.00041424,30]
[310909951,1704814324791,-1079.77,0.00041424,30]
[310909952,1704814324802,-1909.74,0.00041424,30]
[310909953,1704814324812,-3376.04,0.00041424,30]
[310909954,1704814324824,-500.0,0.00041424,30]
[310909955,1704814324834,-500.0,0.00041424,30]
[310909956,1704814324843,-500.0,0.00041424,30]
[310909957,1704814324853,-1333.09,0.00041424,30]
[310909958,1704814324863,-500.0,0.00041424,30]
[310909959,1704814324873,-500.0,0.00041424,30]
[310909960,1704814324882,-9749.45,0.00041424,30]
[310909961,1704814324892,-539.77,0.00041424,30]
[310909962,1704814324902,-2218.8,0.00041424,30]
[310909963,1704814324913,-1480.74,0.00041424,30]
[310909964,1704814324923,-7804.99,0.00041424,30]
[310909965,1704814324933,-1670.61,0.00041424,30]
[310909966,1704814324943,-1352.73,0.00041424,30]
[310909967,1704814324953,-4741.82,0.00041424,30]
[310909968,1704814324963,-1839.15,0.00041424,30]
[310909969,1704814324973,-500.0,0.00041424,30]
[310909970,1704814324982,-866.78,0.00041424,30]
[310909971,1704814324992,-1070.69,0.00041424,30]
[310909972,1704814325002,-744.76,0.00041424,30]
[310909973,1704814325012,-1274.54,0.00041424,30]
[310909974,1704814325022,-2037.9,0.00041424,30]
[310909975,1704814325032,-510.36929936,0.00041424,30]
[310909976,1704814325042,-500.0,0.00041424,30]
[310909977,1704814325052,-6743.41,0.00041424,30]
[310909978,1704814325062,-6850.2,0.00041424,30]
[310909979,1704814325074,-1978.49,0.00041424,30]
[310909980,1704814325084,-621.39,0.00041424,30]
[310909981,1704814325094,-500.0,0.00041424,30]
[310909982,1704814325104,-3055.23,0.00041424,30]
[310909983,1704814325114,-2655.54,0.00041424,30]
[310909984,1704814325124,-764.5,0.00041424,30]
[310909985,1704814325133,-8868.04,0.00041424,30]
[310909986,1704814325144,-415.84,0.00041424,30]
[310909987,1704814325154,-770.69,0.00041424,30]
[310909988,1704814325164,-4116.15,0.00041424,30]
[310909989,1704814325174,-6036.32,0.00041424,30]
[310909990,1704814325184,-500.0,0.00041424,30]
[310909991,1704814325195,-3806.3,0.00041424,30]
[310909992,1704814325205,-1289.28,0.00041424,30]
[310909993,1704814325215,-5775.13,0.00041424,30]
[310909994,1704814325225,-500.0,0.00041424,30]
[310909995,1704814325236,-845.03,0.00041424,30]
[310909996,1704814325247,-6309.52,0.00041424,30]
[310909997,1704814325257,-1090.32,0.00041424,30]
[310909998,1704814325267,-5575.14,0.00041424,30]
[310909999,1704814325277,-3727.78,0.00041424,30]
[310910000,1704814325288,-1022.79383031,0.00041424,10]
[310910001,1704814325298,-901.26,0.00041424,30]
[310910002,1704814325308,-10643.6,0.00041424,30]
[310910003,1704814325319,-529.51,0.00041424,30]
[310910004,1704814325330,-500.0,0.00041424,30]
[310910005,1704814325339,-504.97733574,0.00041424,30]
[310910006,1704814325348,-4214.2,0.00041424,30]
[310910007,1704814325358,-500.0,0.00041424,30]
[310910008,1704814325368,-536.23538688,0.00041424,30]
[310910009,1704814325377,-500.0,0.00041424,30]
[310910010,1704814325387,-3567.97,0.00041424,30]
[310910011,1704814325397,-25536.63,0.00041424,30]
[310910012,1704814325407,-2289.51,0.00041424,30]
[310910013,1704814325418,-2584.46,0.00041424,30]
[310910014,1704814325428,-4952.19,0.00041424,30]
[310910015,1704814325438,-4092.41,0.00041424,30]
[310910016,1704814325450,-546.11,0.00041424,30]
[310910017,1704814325461,-6469.48,0.00041424,30]
[310910018,1704814325471,-1000.5,0.00041424,30]
[310910019,1704814325481,-500.0,0.00041424,30]
[310910020,1704814325491,-1883.51,0.00041424,30]
[310910021,1704814325501,-500.0,0.00041424,30]
[310910022,1704814325511,-14086.33,0.00041424,30]
[310910023,1704814325521,-17610.03,0.00041424,30]
[310910024,1704814325531,-2218.2,0.00041424,30]
[310910025,1704814325541,-500.0,0.00041424,30]
[310910026,1704814325553,-1520.43,0.00041424,30]
[310910027,1704814325563,-2301.6,0.00041424,30]
[310910028,1704814325573,-500.0,0.00041424,30]
[310910029,1704814325583,-3584.84,0.00041424,30]
[310910030,1704814325594,-12370.47,0.00041424,30]
[310910031,1704814325604,-82269.16,0.00041424,30]
[310910032,1704814325613,-587.12,0.00041424,30]
[310910033,1704814325624,-500.0,0.00041424,30]
[310910034,1704814325634,-2651.08,0.00041424,30]
[310910035,1704814325645,-811.16,0.00041424,30]
[310910036,1704814325654,-500.0,0.00041424,30]
[310910037,1704814325664,-500.0,0.00041424,30]
[310910038,1704814325674,-8660.7,0.00041424,30]
[310910039,1704814325684,-500.0,0.00041424,30]
[310910040,1704814325694,-500.0,0.00041424,30]
[310910041,1704814325705,-7898.64,0.00041424,30]
[310910042,1704814325715,-1178.68,0.00041424,30]
[310910043,1704814325724,-499.7174894,0.00041424,30]
[310910044,1704814325734,-6405.08,0.00041424,30]
[310910045,1704814325745,-6245.69,0.00041424,30]
[310910046,1704814325755,-622.07286519,0.00041424,30]
[310910047,1704814325765,-3770.14,0.00041424,30]
[310910048,1704814325775,-500.0,0.00041424,30]
[310910049,1704814325785,-1235.98,0.00041424,30]
[310910050,1704814325795,-1033.39,0.00041424,30]
[310910051,1704814325805,-2108.08,0.00041424,30]
[310910052,1704814325816,-4003.81,0.00041424,30]
[310910053,1704814325828,-3248.4,0.00041424,30]
[310910054,1704814325838,-500.0,0.00041424,30]
[310910055,1704814325847,-500.0,0.00041424,30]
[310910056,1704814325857,-923.06,0.00041424,30]
[310910057,1704814325867,-500.0,0.00041424,30]
[310910058,1704814325877,-1028.56,0.00041424,30]
[310910059,1704814325887,-818.97,0.00041424,30]
[310910060,1704814325897,-500.0,0.00041424,30]
[310910061,1704814325907,-3938.01,0.00041424,30]
[310910062,1704814325916,-500.0,0.00041424,30]
[310910063,1704814325926,-211.13535126,0.00041424,30]
[310910064,1704814325936,-509.60373897,0.00041424,30]
[310910065,1704814325945,-936.13,0.00041424,30]
[310910066,1704814325956,-5593.35,0.00041424,30]
[310910067,1704814325966,-500.0,0.00041424,30]
[310910068,1704814325976,-500.0,0.00041424,30]
[310910069,1704814325987,-500.0,0.00041424,30]
[310910070,1704814325997,-852.7,0.00041424,30]
[310910071,1704814326007,-756.79,0.00041424,30]
[310910072,1704814326017,-500.0,0.00041424,30]
[310910073,1704814326027,-500.0,0.00041424,30]
[310910074,1704814326037,-500.0,0.00041424,30]
[310910075,1704814326047,-2774.75,0.00041424,30]
[310910076,1704814326056,-3304.06,0.00041424,30]
[310910077,1704814326071,-526.99104348,0.00041424,30]
[310910078,1704814326081,-2316.93,0.00041424,30]
[310910079,1704814326091,-2999.26,0.00041424,30]
[310910080,1704814326102,-3194.24,0.00041424,30]
[310910081,1704814326112,-1565.16,0.00041424,30]
[310910082,1704814326122,-6237.0,0.0004149,3]
[310910083,1704814326131,-333.33333,0.00041498,8]
[310910084,1704814326141,-1004.0,0.000415,30]
[310910085,1704814326152,-8750.0,0.000415,2]
[310910086,1704814326162,-5000.0,0.000415,2]
[310910087,1704814326172,-8750.0,0.000415,2]
[310910088,1704814326182,-247.04707649,0.00041506,30]
[310910089,1704814326192,-359.60232386,0.00041506,30]
[310910090,1704814326201,-1349.16,0.00041506,30]
[310910091,1704814326212,-500.0,0.00041506,30]
[310910092,1704814326222,-500.0,0.00041506,30]
[310910093,1704814326233,-500.0,0.00041506,30]
[310910094,1704814326243,-1655.21,0.00041506,30]
[310910095,1704814326253,-717.53,0.00041506,30]
[310910096,1704814326264,-684.27,0.00041506,30]
[310910097,1704814326275,-500.0,0.00041506,30]
[310910098,1704814326285,-500.0,0.00041506,30]
[310910099,1704814326296,-500.0,0.00041506,30]
[310910100,1704814326307,-500.0,0.00041506,30]
[310910101,1704814326317,-878.82,0.00041506,30]
[310910102,1704814326329,-500.0,0.00041506,30]
[310910103,1704814326339,-500.0,0.00041506,30]
[310910104,1704814326349,-500.0,0.00041506,30]
[310910105,1704814326359,-500.0,0.00041506,30]
[310910106,1704814326369,-505.38,0.00041506,30]
[310910107,1704814326379,-1062.3,0.00041506,30]
[310910108,1704814326389,-500.0,0.00041506,30]
[310910109,1704814326400,-500.0,0.00041506,30]
[310910110,1704814326410,-500.0,0.00041506,30]
[310910111,1704814326420,-178.77396917,0.00041506,30]
[310910112,1704814326431,-701.66,0.00041506,30]
[310910113,1704814326441,-1067.49,0.00041506,30]
[310910114,1704814326451,-500.0,0.00041506,30]
[310910115,1704814326461,-500.0,0.00041506,30]
[310910116,1704814326471,-565.87,0.00041506,30]
[310910117,1704814326481,-500.0,0.00041506,30]
[310910118,1704814326491,-500.0,0.00041506,30]
[310910119,1704814326500,-500.0,0.00041506,30]
[310910120,1704814326510,-707.34,0.00041506,30]
[310910121,1704814326520,-676.09,0.00041506,30]
[310910122,1704814326529,-1000.0,0.00041506,30]
[310910123,1704814326539,-2060.33,0.00041506,30]
[310910124,1704814326549,-581.02,0.00041506,30]
[310910125,1704814326559,-1072.03,0.00041506,30]
[310910126,1704814326572,-712.95,0.00041506,30]
[310910127,1704814326582,-500.0,0.00041506,30]
[310910128,1704814326593,-500.0,0.00041506,30]
[310910129,1704814326603,-500.0,0.00041506,30]
[310910130,1704814326612,-569.49,0.00041506,30]
[310910131,1704814326621,-500.0,0.00041506,30]
[310910132,1704814326631,-500.0,0.00041506,30]
[310910133,1704814326641,-500.0,0.00041506,30]
[310910134,1704814326651,-500.0,0.00041506,30]
[310910135,1704814326660,-611.31,0.00041506,30]
[310910136,1704814326670,-500.0,0.00041506,30]
[310910137,1704814326679,-500.0,0.00041506,30]
[310910138,1704814326689,-500.0,0.00041506,30]
[310910139,1704814326698,-500.0,0.00041506,30]
[310910140,1704814326708,-380.20385317,0.00041506,30]
[310910141,1704814326718,-500.0,0.00041506,30]
[310910142,1704814326727,-500.0,0.00041506,30]
[310910143,1704814326736,-500.0,0.00041506,30]
[310910144,1704814326745,-500.0,0.00041506,30]
[310910145,1704814326755,-500.0,0.00041506,30]
[310910146,1704814326765,-569.87,0.00041506,2]
[310910147,1704814326774,-500.0,0.00041506,30]
[310910148,1704814326784,-500.0,0.00041506,30]
[310910149,1704814326793,-500.0,0.00041506,30]
[310910150,1704814326804,-1090.72,0.00041506,30]
[310910151,1704814326813,-808.52,0.00041506,30]
[310910152,1704814327151,-500.0,0.00041506,30]
[310910153,1704814327165,-500.0,0.00041506,30]
[310910154,1704814327175,-500.0,0.00041506,30]
[310910155,1704814327184,-412.97611783,0.00041506,30]
[310910156,1704814327195,-500.0,0.00041506,30]
[310910157,1704814327205,-500.0,0.00041506,30]
[310910158,1704814327214,-500.0,0.00041506,30]
[310910159,1704814327223,-345.23226907,0.00041506,30]
[310910160,1704814327233,-1089.41,0.00041506,30]
[310910161,1704814327243,-675.87,0.00041506,30]
[310910162,1704814327253,-552.1725642,0.00041506,30]
[310910163,1704814327262,-978.4,0.00041506,30]
[310910164,1704814327272,-500.0,0.00041506,30]
[310910165,1704814327282,-500.0,0.00041506,30]
[310910166,1704814327292,-500.0,0.00041506,30]
[310910167,1704814327302,-310.937272,0.00041506,30]
[310910168,1704814327312,-500.0,0.00041506,30]
[310910169,1704814327323,-500.0,0.00041506,30]
[310910170,1704814327332,-500.0,0.00041506,30]
[310910171,1704814327341,-500.0,0.00041506,30]
[310910172,1704814327352,-943.45,0.00041506,30]
[310910173,1704814327362,-500.0,0.00041506,30]
[310910174,1704814327372,-500.0,0.00041506,30]
[310910175,1704814327381,-1046.91,0.00041506,30]
[310910176,1704814327391,-500.0,0.00041506,30]
[310910177,1704814327401,-411.06118953,0.00041506,30]
[310910178,1704814327411,-500.0,0.00041506,30]
[310910179,1704814327420,-500.0,0.00041506,30]
[310910180,1704814327430,-989.32,0.00041506,30]
[310910181,1704814327441,-500.0,0.00041506,30]
[310910182,1704814327451,-500.0,0.00041506,30]
[310910183,1704814327461,-523.36,0.00041506,30]
[310910184,1704814327471,-735.81,0.00041506,30]
[310910185,1704814327481,-500.0,0.00041506,30]
[310910186,1704814327490,-500.0,0.00041506,30]
[310910187,1704814327500,-500.0,0.00041506,7]
[310910188,1704814327509,-805.93,0.00041506,30]
[310910189,1704814327519,-500.0,0.00041506,30]
[310910190,1704814327529,-500.0,0.00041506,30]
[310910191,1704814327538,-512.78323969,0.00041506,30]
[310910192,1704814327548,-519.26477702,0.00041506,30]
[310910193,1704814327558,-1029.87,0.00041506,30]
[310910194,1704814327568,-500.0,0.00041506,30]
[310910195,1704814327580,-500.0,0.00041506,30]
[310910196,1704814327590,-500.0,0.00041506,30]
[310910197,1704814327599,-500.0,0.00041506,30]
[310910198,1704814327609,-858.42,0.00041506,30]
[310910199,1704814327619,-364.76337778,0.00041506,30]
[310910200,1704814327630,-500.0,0.00041506,30]
[310910201,1704814327639,-985.14,0.00041506,30]
[310910202,1704814327649,-250.0,0.00041506,30]
[310910203,1704814327659,-500.0,0.00041506,30]
[310910204,1704814327668,-887.41,0.00041506,30]
[310910205,1704814327678,-586.06,0.00041506,30]
[310910206,1704814327688,-500.0,0.00041506,30]
[310910207,1704814327697,-542.26,0.00041506,30]
[310910208,1704814327707,-500.0,0.00041506,30]
[310910209,1704814327717,-500.0,0.00041506,30]
[310910210,1704814327726,-924.59,0.00041506,30]
[310910211,1704814327736,-639.05,0.00041506,30]
[310910212,1704814327746,-500.0,0.00041506,30]
[310910213,1704814327755,-1031.16,0.00041506,30]
[310910214,1704814327765,-500.0,0.00041506,30]
[310910215,1704814327775,-651.17,0.00041506,6]
[310910216,1704814327785,-500.0,0.00041506,30]
[310910217,1704814327795,-630.96,0.00041506,30]
[310910218,1704814327806,-500.0,0.00041506,30]
[310910219,1704814327817,-500.0,0.00041506,30]
[310910220,1704814327830,-808.61,0.00041506,30]
[310910221,1704814327839,-772.64,0.00041506,30]
[310910222,1704814327849,-500.0,0.00041506,30]
[310910223,1704814327859,-500.0,0.00041506,30]
[310910224,1704814327869,-768.03,0.00041506,30]
[310910225,1704814327879,-1151.39,0.00041506,30]
[310910226,1704814327889,-500.0,0.00041506,30]
[310910227,1704814327900,-524.78347462,0.00041506,30]
[310910228,1704814327910,-500.0,0.00041506,30]
[310910229,1704814327920,-500.0,0.00041506,30]
[310910230,1704814327930,-500.0,0.00041506,30]
[310910231,1704814327940,-500.0,0.00041506,30]
[310910232,1704814327950,-500.0,0.00041506,30]
[310910233,1704814327959,-500.0,0.00041506,30]
[310910234,1704814327969,-500.0,0.00041506,30]
[310910235,1704814327979,-594.48,0.00041506,30]
[310910236,1704814327988,-1345.27,0.00041506,30]
[310910237,1704814327998,-530.22,0.00041506,30]
[310910238,1704814328007,-500.0,0.00041506,30]
[310910239,1704814328017,-504.9,0.00041506,30]
[310910240,1704814328026,-594.13313656,0.00041506,30]
[310910241,1704814328035,-500.0,0.00041506,30]
[310910242,1704814328045,-500.0,0.00041506,30]
[310910243,1704814328055,-898.15,0.00041506,30]
[310910244,1704814328065,-500.0,0.00041506,30]
[310910245,1704814328076,-1000.0,0.00041506,2]
[310910246,1704814328085,-500.0,0.00041506,30]
[310910247,1704814328095,-1088.78,0.00041506,30]
[310910248,1704814328105,-827.59,0.00041506,30]
[310910249,1704814328115,-500.0,0.00041506,30]
[310910250,1704814328125,-500.0,0.00041506,30]
[310910251,1704814328135,-500.0,0.00041506,30]
[310910252,1704814328145,-467.28129342,0.00041506,30]
[310910253,1704814328155,-1220.08,0.00041506,30]
[310910254,1704814328166,-500.0,0.00041506,30]
[310910255,1704814328176,-965.85,0.00041506,30]
[310910256,1704814328185,-1200.92,0.00041506,30]
[310910257,1704814328195,-500.0,0.00041506,30]
[310910258,1704814328205,-615.95,0.00041506,30]
[310910259,1704814328214,-500.0,0.00041506,30]
[310910260,1704814328224,-677.14,0.00041506,30]
[310910261,1704814328234,-500.0,0.00041506,30]
[310910262,1704814328244,-500.0,0.00041506,30]
[310910263,1704814328254,-500.0,0.00041506,30]
[310910264,1704814328264,-906.91,0.00041506,30]
[310910265,1704814328274,-500.0,0.00041506,30]
[310910266,1704814328284,-500.0,0.00041506,30]
[310910267,1704814328294,-500.0,0.00041506,30]
[310910268,1704814328304,-1003.46,0.00041506,30]
[310910269,1704814328313,-500.0,0.00041506,30]
[310910270,1704814328324,-500.0,0.00041506,30]
[310910271,1704814328334,-805.99,0.00041506,30]
[310910272,1704814328345,-500.0,0.00041506,30]
[310910273,1704814328355,-500.0,0.00041506,30]
[310910274,1704814328364,-500.0,0.00041506,30]
[310910275,1704814328374,-500.0,0.00041506,30]
[310910276,1704814328384,-500.0,0.00041506,30]
[310910277,1704814328393,-500.0,0.00041506,30]
[310910278,1704814328403,-500.0,0.00041506,30]
[310910279,1704814328413,-920.79,0.00041506,30]
[310910280,1704814328423,-983.43,0.00041506,30]
[310910281,1704814328433,-628.8,0.00041506,30]
[310910282,1704814328442,-500.0,0.00041506,30]
[310910283,1704814328452,-500.0,0.00041506,30]
[310910284,1704814328461,-500.0,0.00041506,30]
[310910285,1704814328471,-380.9843798,0.00041506,30]
[310910286,1704814328480,-500.0,0.00041506,30]
[310910287,1704814328490,-500.0,0.00041506,30]
[310910288,1704814328499,-500.0,0.00041506,30]
[310910289,1704814328509,-544.66,0.00041506,30]
[310910290,1704814328519,-500.0,0.00041506,30]
[310910291,1704814328529,-500.0,0.00041506,30]
[310910292,1704814328539,-500.0,0.00041506,30]
[310910293,1704814328550,-500.0,0.00041506,30]
[310910294,1704814328559,-1232.09,0.00041506,30]
[310910295,1704814328569,-500.0,0.00041506,30]
[310910296,1704814328580,-832.26,0.00041506,30]
[310910297,1704814328590,-500.0,0.00041506,30]
[310910298,1704814328600,-500.0,0.00041506,7]
[310910299,1704814328609,-500.0,0.00041506,30]
[310910300,1704814328619,-941.95,0.00041506,30]
[310910301,1704814328628,-500.0,0.00041506,30]
[310910302,1704814328637,-809.62,0.00041506,30]
[310910303,1704814328647,-500.0,0.00041506,30]
[310910304,1704814328658,-1379.83,0.00041506,30]
[310910305,1704814328667,-500.0,0.00041506,30]
[310910306,1704814328677,-844.05,0.00041506,30]
[310910307,1704814328686,-851.49,0.00041506,30]
[310910308,1704814328696,-562.95,0.00041506,30]
[310910309,1704814328705,-1162.12,0.00041506,30]
[310910310,1704814328714,-500.0,0.00041506,30]
[310910311,1704814328724,-872.21,0.00041506,30]
[310910312,1704814328733,-500.0,0.00041506,30]
[310910313,1704814328742,-706.17,0.00041506,30]
[310910314,1704814328752,-980.88,0.00041506,30]
[310910315,1704814328761,-178.50260941,0.00041506,30]
[310910316,1704814328770,-500.0,0.00041506,30]
[310910317,1704814328780,-730.77,0.00041506,30]
[310910318,1704814328789,-500.0,0.00041506,30]
[310910319,1704814328800,-500.0,0.00041506,30]
[310910320,1704814328809,-500.0,0.00041506,30]
[310910321,1704814328819,-635.39,0.00041506,30]
[310910322,1704814328833,-500.0,0.00041506,30]
[310910323,1704814328842,-921.8,0.00041506,30]
[310910324,1704814328852,-500.0,0.00041506,30]
[310910325,1704814328861,-613.33,0.00041506,30]
[310910326,1704814328870,-500.0,0.00041506,30]
[310910327,1704814328879,-1001.03,0.00041506,30]
[310910328,1704814328889,-2820.32,0.00041506,30]
[310910329,1704814328898,-500.0,0.00041506,30]
[310910330,1704814328907,-878.02,0.00041506,30]
[310910331,1704814328917,-2535.74,0.00041506,30]
[310910332,1704814328926,-500.0,0.00041506,30]
[310910333,1704814328935,-500.0,0.00041506,30]
[310910334,1704814328944,-1197.1,0.00041506,30]
[310910335,1704814328954,-500.0,0.00041506,30]
[310910336,1704814328963,-500.0,0.00041506,30]
[310910337,1704814328973,-500.0,0.00041506,30]
[310910338,1704814328982,-703.38,0.00041506,30]
[310910339,1704814328991,-500.0,0.00041506,30]
[310910340,1704814329001,-500.0,0.00041506,30]
[310910341,1704814329010,-220.39647681,0.00041506,30]
[310910342,1704814329019,-500.0,0.00041506,30]
[310910343,1704814329028,-293.66085722,0.00041506,30]
[310910344,1704814329038,-500.0,0.00041506,30]
[310910345,1704814329047,-500.0,0.00041506,30]
[310910346,1704814329057,-500.0,0.00041506,30]
[310910347,1704814329067,-1209.27,0.00041506,30]
[310910348,1704814329079,-459.45685237,0.00041506,30]
[310910349,1704814329089,-3470.75,0.00041506,30]
[310910350,1704814329098,-736.81,0.00041506,30]
[310910351,1704814329107,-500.0,0.00041506,30]
[310910352,1704814329117,-500.0,0.00041506,30]
[310910353,1704814329126,-500.0,0.00041506,30]
[310910354,1704814329136,-832.75,0.00041506,30]
[310910355,1704814329145,-1686.91,0.00041506,30]
[310910356,1704814329155,-2682.01,0.00041506,30]
[310910357,1704814329164,-2537.38,0.00041506,30]
[310910358,1704814329174,-1565.58,0.00041506,30]
[310910359,1704814329183,-740.27,0.00041506,30]
[310910360,1704814329193,-600.36,0.00041506,30]
[310910361,1704814329202,-501.25,0.00041506,30]
[310910362,1704814329212,-500.0,0.00041506,30]
[310910363,1704814329221,-500.0,0.00041506,30]
[310910364,1704814329231,-1224.61,0.00041506,30]
[310910365,1704814329240,-2236.0,0.00041506,30]
[310910366,1704814329249,-2897.3,0.00041506,30]
[310910367,1704814329259,-1928.1,0.00041506,30]
[310910368,1704814329269,-500.0,0.00041506,30]
[310910369,1704814329279,-1993.87,0.00041506,30]
[310910370,1704814329289,-576.08,0.00041506,30]
[310910371,1704814329299,-500.0,0.00041506,30]
[310910372,1704814329309,-556.49,0.00041506,30]
[310910373,1704814329319,-624.68,0.00041506,30]
[310910374,1704814329331,-770.16,0.00041506,30]
[310910375,1704814329340,-2377.69,0.00041506,30]
[310910376,1704814329350,-1122.24,0.00041506,30]
[310910377,1704814329359,-500.0,0.00041506,30]
[310910378,1704814329369,-500.0,0.00041506,30]
[310910379,1704814329378,-500.0,0.00041506,30]
[310910380,1704814329387,-500.0,0.00041506,30]
[310910381,1704814329396,-2275.75,0.00041506,30]
[310910382,1704814329405,-2702.81,0.00041506,30]
[310910383,1704814329414,-500.0,0.00041506,30]
[310910384,1704814329423,-500.0,0.00041506,30]
[310910385,1704814329433,-500.0,0.00041506,30]
[310910386,1704814329442,-1074.62,0.00041506,30]
[310910387,1704814329452,-787.86,0.00041506,30]
[310910388,1704814329461,-500.0,0.00041506,30]
[310910389,1704814329471,-500.0,0.00041506,30]
[310910390,1704814329480,-2309.85,0.00041506,30]
[310910391,1704814329490,-3474.73,0.00041506,30]
[310910392,1704814329499,-2283.1,0.00041506,30]
[310910393,1704814329508,-500.0,0.00041506,30]
[310910394,1704814329517,-1596.69,0.00041506,30]
[310910395,1704814329527,-1645.78,0.00041506,30]
[310910396,1704814329539,-1113.3,0.00041506,30]
[310910397,1704814329549,-1309.33,0.00041506,30]
[310910398,1704814329559,-507.11009099,0.00041506,30]
[310910399,1704814329569,-1314.94,0.00041506,30]
[310910400,1704814329579,-500.0,0.00041506,30]
[310910401,1704814329589,-500.0,0.00041506,30]
[310910402,1704814329598,-1968.01,0.00041506,30]
[310910403,1704814329607,-500.0,0.00041506,2]
[310910404,1704814329617,-1096.11,0.00041506,30]
[310910405,1704814329626,-1246.22,0.00041506,30]
[310910406,1704814329635,-721.49,0.00041506,30]
[310910407,1704814329645,-544.47,0.00041506,30]
[310910408,1704814329654,-2589.92,0.00041506,30]
[310910409,1704814329663,-1433.82,0.00041506,30]
[310910410,1704814329672,-500.0,0.00041506,30]
[310910411,1704814329681,-500.0,0.00041506,30]
[310910412,1704814329690,-500.0,0.00041506,30]
[310910413,1704814329699,-1499.73,0.00041506,30]
[310910414,1704814329708,-500.0,0.00041506,30]
[310910415,1704814329717,-500.0,0.00041506,30]
[310910416,1704814329726,-1138.55,0.00041506,30]
[310910417,1704814329736,-2193.46,0.00041506,30]
[310910418,1704814329745,-1590.0,0.00041506,30]
[310910419,1704814329754,-1703.93,0.00041506,30]
[310910420,1704814329764,-1188.38,0.00041506,30]
[310910421,1704814329773,-500.0,0.00041506,30]
[310910422,1704814329783,-537.40635226,0.00041506,30]
[310910423,1704814329792,-500.0,0.00041506,30]
[310910424,1704814329803,-481.34994087,0.00041506,30]
[310910425,1704814329812,-500.0,0.00041506,30]
[310910426,1704814329825,-987.73,0.00041506,30]
[310910427,1704814329835,-520.23,0.00041506,30]
[310910428,1704814329844,-1982.92,0.00041506,30]
[310910429,1704814329853,-523.39,0.00041506,30]
[310910430,1704814329862,-562.23,0.00041506,30]
[310910431,1704814329872,-641.09,0.00041506,30]